fUST/lending_fUST_20241029
["ID","MTS","AMOUNT","RATE_DAILY","PERIOD"]
[340959465,1730159443676,-195.048477,0.00025,7]
[340959466,1730159443687,-263.524919,0.00025,7]
[340959467,1730159443696,-205.77898,0.00025,7]
[340959468,1730159443705,-151.0,0.00025,7]
[340959469,1730159443715,-151.0,0.00025,7]
[340959470,1730159443724,-151.0,0.00025,7]
[340959471,1730159443734,-242.097221,0.00025,7]
[340959472,1730159443743,-151.0,0.00025,7]
[340959473,1730159443753,-242.097221,0.00025,7]
[340959474,1730159443763,-167.0,0.00025,2]
[340959475,1730159443774,-151.0,0.00025,7]
[340959476,1730159443783,-207.729126,0.00025,7]
[340959477,1730159443794,-207.729126,0.00025,7]
[340959478,1730159443804,-151.0,0.00025,7]
[340959479,1730159443813,-500.0,0.00025001,30]
[340959480,1730159443823,-500.0,0.00025001,30]
[340959481,1730159443832,-500.0,0.00025001,30]
[340959482,1730159443841,-500.0,0.00025001,30]
[340959483,1730159443850,-3161.79427047,0.00025195,3]
[340959484,1730159443872,-333.04240939,0.00025195,3]
[340959485,1730159444107,-4464.00148746,0.00025195,3]
[340959486,1730159444119,-953.84113845,0.00025195,3]
[340959849,1730159447866,-1437.71553923,0.00025195,3]
[340959851,1730159447876,-151.0,0.00025195,7]
[340959853,1730159447885,-256.700606,0.00025195,7]
[340959855,1730159447894,-5692.14128317,0.00025197,2]
[340959857,1730159447903,-151.0,0.00025197,7]
[340959859,1730159447913,-173.506595,0.00025198,2]
[340959861,1730159447922,-500.0,0.00025205,4]
[340959863,1730159447931,-500.0,0.00025205,4]
[340959865,1730159447940,-500.0,0.00025205,4]
[340959867,1730159447949,-500.0,0.00025205,4]
[340959869,1730159447958,-500.0,0.00025205,4]
[340959871,1730159447968,-500.0,0.00025205,4]
[340959872,1730159447977,-500.0,0.00025205,4]
[340959875,1730159447987,-500.0,0.00025205,4]
[340959876,1730159447996,-500.0,0.00025205,4]
[340959878,1730159448005,-500.0,0.00025205,4]
[340959880,1730159448015,-500.0,0.00025205,4]
[340959882,1730159448025,-500.0,0.00025205,4]
[340959884,1730159448034,-500.0,0.00025205,4]
[340959886,1730159448043,-500.0,0.00025205,4]
[340959888,1730159448053,-500.0,0.00025205,4]
[340959890,1730159448062,-500.0,0.00025205,4]
[340959892,1730159448074,-507.55537715,0.00025205,4]
[340959894,1730159448084,-500.0,0.00025205,4]
[340959896,1730159448093,-500.0,0.00025205,4]
[340959898,1730159448103,-503.17207538,0.00025205,4]
[340959900,1730159448112,-500.0,0.00025205,4]
[340959902,1730159448122,-500.0,0.00025205,4]
[340959904,1730159448132,-500.0,0.00025205,4]
[340959906,1730159448141,-500.0,0.00025205,4]
[340959908,1730159448152,-151.0,0.00025205,7]
[340959910,1730159448161,-500.0,0.00025205,4]
[340959912,1730159448171,-256.700606,0.00025205,7]
[340959914,1730159448180,-500.0,0.00025205,4]
[340959916,1730159448190,-500.0,0.00025205,4]
[340959918,1730159448199,-500.0,0.00025205,4]
[340959920,1730159448208,-500.0,0.00025205,4]
[340959922,1730159448219,-500.0,0.00025205,4]
[340959924,1730159448228,-500.0,0.00025205,4]
[340959926,1730159448238,-151.0,0.00025205,7]
[340959928,1730159448247,-151.0,0.00025205,7]
[340959930,1730159448257,-500.0,0.00025205,4]
[340959932,1730159448266,-500.0,0.00025205,4]
[340959934,1730159448275,-500.0,0.00025205,4]
[340959936,1730159448284,-500.0,0.00025205,4]
[340959938,1730159448293,-500.0,0.00025205,4]
[340959941,1730159448303,-500.0,0.00025205,4]
[340959943,1730159448313,-590.28,0.00025205,4]
[340959945,1730159448322,-500.0,0.00025205,4]
[340959947,1730159448331,-500.0,0.00025205,4]
[340959948,1730159448340,-223.290236,0.00025205,7]
[340959950,1730159448349,-509.06498827,0.00025205,4]
[340959952,1730159448359,-500.0,0.00025205,4]
[340959954,1730159448368,-500.0,0.00025205,4]
[340959956,1730159448377,-500.0,0.00025205,4]
[340959958,1730159448386,-500.0,0.00025205,4]
[340959960,1730159448395,-500.0,0.00025205,4]
[340959962,1730159448404,-500.0,0.00025205,4]
[340959965,1730159448414,-500.0,0.00025205,4]
[340959966,1730159448424,-500.0,0.00025205,4]
[340959969,1730159448433,-500.0,0.00025205,4]
[340959970,1730159448443,-500.0,0.00025205,4]
[340959973,1730159448452,-500.0,0.00025205,4]
[340959974,1730159448462,-500.0,0.00025205,4]
[340959976,1730159448472,-583.72629414,0.00025205,4]
[340959978,1730159448481,-500.0,0.00025205,4]
[340959981,1730159448491,-500.0,0.00025205,4]
[340959983,1730159448501,-444.66144066,0.00025205,4]
[340959985,1730159448510,-500.0,0.00025205,4]
[340959987,1730159448519,-500.0,0.00025205,4]
[340959988,1730159448528,-500.0,0.00025205,4]
[340959990,1730159448537,-500.0,0.00025205,4]
[340959992,1730159448547,-500.0,0.00025205,4]
[340959994,1730159448556,-500.0,0.00025205,4]
[340959996,1730159448566,-500.0,0.00025205,4]
[340959998,1730159448575,-500.0,0.00025205,4]
[340960000,1730159448584,-500.0,0.00025205,4]
[340960002,1730159448593,-500.0,0.00025205,4]
[340960004,1730159448602,-507.15,0.00025205,4]
[340960006,1730159448611,-500.0,0.00025205,4]
[340960008,1730159448621,-500.0,0.00025205,4]
[340960010,1730159448630,-500.0,0.00025205,4]
[340960012,1730159448640,-500.0,0.00025205,4]
[340960014,1730159448649,-500.0,0.00025205,4]
[340960016,1730159448658,-510.00937303,0.00025205,4]
[340960018,1730159448667,-500.0,0.00025205,4]
[340960020,1730159448676,-500.0,0.00025205,4]
[340960022,1730159448685,-500.0,0.00025205,4]
[340960024,1730159448695,-500.0,0.00025205,4]
[340960026,1730159448704,-500.0,0.00025205,4]
[340960028,1730159448713,-500.0,0.00025205,4]
[340960040,1730159448821,-500.0,0.00025205,4]
[340960042,1730159448830,-500.0,0.00025205,4]
[340960044,1730159448839,-500.0,0.00025205,4]
[340960046,1730159448849,-500.0,0.00025205,4]
[340960048,1730159448858,-500.0,0.00025205,4]
[340960050,1730159448868,-500.0,0.00025205,4]
[340960052,1730159448877,-500.0,0.00025205,4]
[340960054,1730159448886,-500.0,0.00025205,4]
[340960056,1730159448895,-500.0,0.00025205,4]
[340960058,1730159448904,-500.0,0.00025205,4]
[340960060,1730159448914,-500.0,0.00025205,4]
[340960062,1730159448923,-500.0,0.00025205,4]
[340960064,1730159448932,-551.9,0.00025205,4]
[340960066,1730159448941,-500.0,0.00025205,4]
[340960068,1730159448950,-500.0,0.00025205,4]
[340960070,1730159448959,-500.0,0.00025205,4]
[340960072,1730159448970,-500.0,0.00025205,4]
[340960073,1730159448980,-500.0,0.00025205,4]
[340960075,1730159448990,-508.60629159,0.00025205,4]
[340960077,1730159448999,-500.0,0.00025205,4]
[340960080,1730159449009,-500.0,0.00025205,4]
[340960082,1730159449023,-500.0,0.00025205,4]
[340960084,1730159449033,-500.0,0.00025205,4]
[340960086,1730159449042,-201.54210696,0.00025205,4]
[340960088,1730159449051,-500.0,0.00025205,4]
[340960090,1730159449061,-500.0,0.00025205,4]
[340960092,1730159449073,-500.0,0.00025205,4]
[340960094,1730159449083,-500.0,0.00025205,4]
[340960096,1730159449092,-151.0,0.00025205,7]
[340960098,1730159449102,-151.0,0.00025205,7]
[340960100,1730159449112,-500.0,0.00025205,4]
[340960102,1730159449122,-151.0,0.00025205,7]
[340960104,1730159449132,-278.495973,0.00025205,7]
[340960106,1730159449141,-500.0,0.00025205,4]
[340960108,1730159449151,-500.0,0.00025205,4]
[340960110,1730159449160,-500.0,0.00025205,4]
[340960112,1730159449170,-500.0,0.00025205,4]
[340960114,1730159449179,-500.0,0.00025205,4]
[340960116,1730159449189,-500.0,0.00025205,4]
[340960118,1730159449198,-500.0,0.00025205,4]
[340960120,1730159449208,-500.0,0.00025205,4]
[340960122,1730159449218,-500.0,0.00025205,4]
[340960123,1730159449228,-500.0,0.00025205,4]
[340960125,1730159449237,-107.92473842,0.00025205,4]
[340960141,1730159449375,-392.07526158,0.00025205,4]
[340960143,1730159449385,-500.0,0.00025205,4]
[340960145,1730159449395,-545.15062443,0.00025205,4]
[340960147,1730159449404,-401.82146368,0.00025205,4]
[340960149,1730159449414,-500.0,0.00025205,4]
[340960151,1730159449423,-500.0,0.00025205,4]
[340960153,1730159449432,-500.0,0.00025205,4]
[340960155,1730159449441,-500.0,0.00025205,4]
[340960156,1730159449450,-500.0,0.00025205,4]
[340960157,1730159449459,-500.0,0.00025205,4]
[340960158,1730159449469,-361.56666987,0.00025205,4]
[340960159,1730159449479,-500.0,0.00025205,4]
[340960160,1730159449488,-500.0,0.00025205,4]
[340960161,1730159449497,-155.25980634,0.00025205,4]
[340960179,1730159449732,-665.2948023,0.00024921,10]
[340960182,1730159449750,-29203.48809225,0.00024921,10]
[340960184,1730159449761,-269.81710545,0.00024921,10]
[340960186,1730159449771,-344.74019366,0.00025205,4]
[340960188,1730159449780,-213.80270089,0.00025205,4]
[340960190,1730159449792,-286.19729911,0.00025205,4]
[340960192,1730159449801,-318.98270089,0.00025205,7]
[340960194,1730159449812,-271.45596814,0.00025205,7]
[340960196,1730159449823,-59.22319197,0.00025205,7]
[340960198,1730159449833,-649.661861,0.00025205,7]
[340960200,1730159449842,-649.661861,0.00025205,7]
[340960202,1730159449851,-562.04023691,0.00025205,7]
[340960205,1730159449863,-87.62162409,0.00025205,7]
[340960207,1730159449872,-500.0,0.00025205,4]
[340960209,1730159449882,-500.0,0.00025205,4]
[340960211,1730159449891,-953.53907926,0.00025205,4]
[340960221,1730159449978,-177.11092074,0.00025205,4]
[340960223,1730159449988,-500.0,0.00025205,4]
[340960225,1730159449997,-500.0,0.00025205,4]
[340960226,1730159450007,-500.0,0.00025205,4]
[340960228,1730159450017,-500.0,0.00025205,4]
[340960230,1730159450027,-500.0,0.00025205,4]
[340960232,1730159450036,-500.0,0.00025205,4]
[340960234,1730159450045,-500.0,0.00025205,4]
[340960236,1730159450055,-144.30338922,0.00025205,4]
[340960239,1730159450066,-355.69661078,0.00025205,4]
[340960241,1730159450080,-500.0,0.00025205,4]
[340960243,1730159450089,-317.96103772,0.00025205,4]
[340960245,1730159450101,-182.03896228,0.00025205,4]
[340960247,1730159450111,-366.4951046,0.00025205,4]
[340960249,1730159450123,-133.5048954,0.00025205,4]
[340960251,1730159450132,-480.0836046,0.00025205,4]
[340960253,1730159450144,-19.9163954,0.00025205,4]
[340960255,1730159450154,-391.19540379,0.00025205,4]
[340960257,1730159450167,-108.80459621,0.00025205,4]
[340960259,1730159450176,-191.98261379,0.00025205,4]
[340960856,1730159586722,164.203592,0.00013973,2]
[340960859,1730160249483,165.032529,0.00013973,2]
[340960864,1730160434271,-182.0080852,0.00021469,2]
[340960865,1730160434292,-181.2510577,0.00021534,2]
[340960866,1730160434313,-383.17154495,0.00021652,2]
[340960867,1730160436125,-203.84291695,0.00021652,2]
[340960868,1730160436146,-165.35370419,0.00021896,2]
[340960870,1730160468870,2207.79,0.0003567,30]
[340960873,1730160545097,-279.34303181,0.00021896,2]
[340960874,1730160545118,-172.052214,0.00021918,2]
[340960875,1730160545818,82.81807471,0.000215,2]
[340960876,1730160548098,-13941.8211338,0.000215,2]
[340960877,1730160554101,-8253.00224435,0.000215,2]
[340960878,1730160555091,-2140.51308764,0.000215,2]
[340960879,1730160573081,-481.8454595,0.000215,2]
[340960896,1730160632599,-173.166614,0.00022026,2]
[340960897,1730160632610,-158.83690959,0.0002225,2]
[340961126,1730160643658,-470.30864695,0.0002225,2]
[340961129,1730160643675,-299.69195969,0.0002225,2]
[340961131,1730160643687,-176.29713777,0.0002225,2]
[340961133,1730160643696,-250.0,0.00022526,2]
[340961135,1730160643705,-458.61790713,0.00022572,2]
[340961137,1730160643715,-167.74618,0.00022587,2]
[340961139,1730160643724,-250.0,0.00022587,2]
[340961141,1730160643734,-167.74618,0.00022601,2]
[340961143,1730160643743,-167.74618,0.00022615,2]
[340961145,1730160643754,-167.74618,0.00022629,2]
[340961147,1730160643764,-167.74618,0.00022644,2]
[340961149,1730160643775,-250.0,0.00022649,2]
[340961151,1730160643785,-167.74618,0.00022658,2]
[340961153,1730160643794,-167.74618,0.00022672,2]
[340961155,1730160643805,-167.74618,0.00022686,2]
[340961157,1730160643815,-167.74618,0.000227,2]
[340961159,1730160643825,-36.98882793,0.00022711,2]
[340961183,1730161236313,165.743047,0.00013973,2]
[340961185,1730161267595,5932.6699,0.00035674,30]
[340961194,1730161644133,-492.04322487,0.00021432,2]
[340961195,1730161654099,-244.71321113,0.00021432,2]
[340961196,1730161654124,-235.70941783,0.00021501,2]
[340961200,1730161699292,444.58965464,0.00035689,120]
[340961202,1730161705564,625.40518327,0.00035689,60]
[340961203,1730161710986,750.41654667,0.00035689,120]
[340961211,1730161746104,-163.98454,0.0002071,2]
[340961212,1730161746126,-311.42279816,0.00021332,2]
[340961213,1730161746148,-14.29058217,0.00021501,2]
[340961214,1730161746171,-250.0,0.0002156,2]
[340961215,1730161746193,-250.0,0.00021619,2]
[340961216,1730161746214,-250.0,0.00021678,2]
[340961217,1730161746236,-250.0,0.00021737,2]
[340961218,1730161746258,-7428.84570652,0.00021751,2]
[340961219,1730161746278,-67.91154312,0.00021755,2]
[340961220,1730161751149,-300.0,0.00021794,2]
[340961221,1730161751170,-300.0,0.00021795,2]
[340961222,1730161751192,-250.0,0.00021796,2]
[340961223,1730161751212,-305.74527141,0.00021814,2]
[340961224,1730161751233,-250.0,0.00021855,2]
[340961225,1730161751259,-250.0,0.00021914,2]
[340961226,1730161751280,-170.705827,0.00021918,2]
[340961227,1730161751300,-250.0,0.00021973,2]
[340961228,1730161751319,-165.0,0.00022,2]
[340961229,1730161751339,-167.0,0.00022,2]
[340961230,1730161751359,-154.7320759,0.00022032,2]
[340961231,1730161771135,-95.2679241,0.00022032,2]
[340961232,1730161771158,-106.37794872,0.00022091,2]
[340961248,1730161832734,-169.090163,0.00021918,2]
[340961249,1730161832744,-151.2668096,0.0002201,2]
[340961250,1730161832756,-24748.7331904,0.0002201,2]
[340961251,1730161832765,-181.19299991,0.00022045,2]
[340961252,1730161832774,-222.348368,0.00022048,2]
[340961253,1730161832783,-143.62205128,0.00022091,2]
[340961254,1730161832792,-181.1929999,0.00022107,2]
[340961255,1730161832802,-736.756436,0.00022117,2]
[340961256,1730161832811,-7428.84570652,0.00022128,2]
[340961257,1730161832820,-300.0,0.00022144,2]
[340961258,1730161832829,-300.0,0.00022144,2]
[340961259,1730161832839,-944.32877731,0.00022145,2]
[340961260,1730161832847,-250.0,0.0002215,2]
[340961261,1730161832856,-181.1929999,0.00022168,2]
[340961262,1730161832866,-250.0,0.00022209,2]
[340961263,1730161832875,-250.0,0.00022268,2]
[340961264,1730161832885,-250.0,0.00022327,2]
[340961265,1730161832894,-7428.84570653,0.00022383,2]
[340961266,1730161832904,-250.0,0.00022386,2]
[340961267,1730161832912,-250.0,0.00022445,2]
[340961268,1730161832921,-250.0,0.00022504,2]
[340961269,1730161832931,-169.090163,0.00022559,2]
[340961270,1730161832940,-250.0,0.00022563,2]
[340961271,1730161832949,-250.0,0.00022622,2]
[340961272,1730161832959,-736.756436,0.00022802,2]
[340961273,1730161832968,-896.19088708,0.00022852,2]
[340961274,1730161832977,-201.0,0.00023,2]
[340961275,1730161832987,-166.0,0.00023014,2]
[340961276,1730161832997,-167.0,0.00023014,2]
[340961277,1730161833006,-169.090163,0.000232,2]
[340961278,1730161833016,-178.9012465,0.00023836,2]
[340961279,1730161833026,-169.090163,0.00023841,2]
[340961280,1730161833035,-400.046,0.0002394,2]
[340961281,1730161833045,-420.0,0.0002406,2]
[340961282,1730161833056,-168.0,0.00024164,2]
[340961283,1730161833066,-420.0,0.00024359,2]
[340961284,1730161833076,-169.090163,0.00024482,2]
[340961285,1730161833085,-1305.76175533,0.000245,2]
[340961286,1730161833095,-196.35841899,0.00024524,2]
[340961287,1730161833104,-196.35841895,0.00024526,2]
[340961288,1730161833114,-196.35841895,0.00024529,2]
[340961289,1730161833123,-196.35841895,0.00024531,2]
[340961290,1730161833255,-196.35841895,0.00024533,2]
[340961291,1730161833266,-1934.1970282,0.00024547,2]
[340961292,1730161833275,-681.79,0.00024615,3]
[340961293,1730161833284,-538.22275014,0.00024623,2]
[340961294,1730161833293,-500.0,0.00024623,2]
[340961295,1730161833304,-500.0,0.00024623,2]
[340961296,1730161833314,-500.0,0.00024623,2]
[340961297,1730161833323,-500.0,0.00024623,2]
[340961298,1730161833333,-500.74103861,0.00024623,2]
[340961299,1730161833342,-500.0,0.00024623,2]
[340961300,1730161833351,-500.0,0.00024623,2]
[340961301,1730161833360,-500.0,0.00024623,2]
[340961302,1730161833370,-500.0,0.00024623,2]
[340961303,1730161833379,-500.0,0.00024623,2]
[340961304,1730161833388,-370.65402092,0.00024623,2]
[340961305,1730161833397,-634.67936603,0.00024623,2]
[340961306,1730161833406,-500.0,0.00024623,2]
[340961307,1730161833415,-500.0,0.00024623,2]
[340961308,1730161833424,-500.0,0.00024623,2]
[340961309,1730161833434,-500.0,0.00024623,2]
[340961310,1730161833444,-500.0,0.00024623,2]
[340961311,1730161833456,-500.0,0.00024623,2]
[340961312,1730161833465,-500.0,0.00024623,2]
[340961313,1730161833474,-457.08907,0.00024623,2]
[340961314,1730161833483,-500.0,0.00024623,2]
[340961315,1730161833491,-500.0,0.00024623,2]
[340961316,1730161833500,-500.0,0.00024623,2]
[340961317,1730161833510,-500.0,0.00024623,2]
[340961318,1730161833519,-500.0,0.00024623,2]
[340961319,1730161833528,-500.0,0.00024623,2]
[340961320,1730161833537,-500.0,0.00024623,2]
[340961321,1730161833547,-356.21827614,0.00024623,2]
[340961322,1730161833557,-565.83889672,0.00024623,2]
[340961323,1730161833566,-500.0,0.00024623,2]
[340961324,1730161833576,-500.0,0.00024623,2]
[340961325,1730161833585,-500.0,0.00024623,2]
[340961326,1730161833595,-500.0,0.00024623,2]
[340961327,1730161833604,-500.0,0.00024623,2]
[340961328,1730161833614,-500.0,0.00024623,2]
[340961329,1730161833624,-500.0,0.00024623,2]
[340961330,1730161833634,-500.0,0.00024623,2]
[340961331,1730161833643,-500.0,0.00024623,2]
[340961332,1730161833653,-500.0,0.00024623,2]
[340961333,1730161833663,-500.0,0.00024623,2]
[340961334,1730161833673,-500.0,0.00024623,2]
[340961335,1730161833682,-500.0,0.00024623,2]
[340961336,1730161833692,-500.0,0.00024623,2]
[340961337,1730161833701,-500.0,0.00024623,2]
[340961338,1730161833711,-500.0,0.00024623,2]
[340961339,1730161833721,-500.0,0.00024623,2]
[340961340,1730161833730,-500.0,0.00024623,2]
[340961341,1730161833740,-500.0,0.00024623,2]
[340961342,1730161833750,-500.0,0.00024623,2]
[340961343,1730161833760,-500.0,0.00024623,2]
[340961344,1730161833770,-409.46575286,0.00024623,2]
[340961345,1730161833780,-500.0,0.00024623,2]
[340961346,1730161833789,-500.0,0.00024623,2]
[340961347,1730161833799,-500.0,0.00024623,2]
[340961348,1730161833809,-500.0,0.00024623,2]
[340961349,1730161833819,-500.0,0.00024623,2]
[340961350,1730161833829,-500.0,0.00024623,2]
[340961351,1730161833838,-500.0,0.00024623,2]
[340961352,1730161833847,-500.0,0.00024623,2]
[340961353,1730161833857,-671.07448541,0.00024624,2]
[340961354,1730161833866,-48894.3341731,0.00024625,3]
[340961355,1730161833876,-34754.4758452,0.00024625,3]
[340961356,1730161833885,-340.89,0.00024625,3]
[340961357,1730161833894,-563.9409249,0.00024626,2]
[340961358,1730161833903,-301.38961185,0.00024626,2]
[340961359,1730161833913,-309.7627366,0.00024626,2]
[340961360,1730161833922,-24956.4860885,0.00024627,3]
[340961378,1730161838832,-500.0,0.00024623,2]
[340961379,1730161838841,-500.0,0.00024623,2]
[340961380,1730161838851,-500.0,0.00024623,2]
[340961381,1730161838860,-500.0,0.00024623,2]
[340961382,1730161838869,-500.0,0.00024623,2]
[340961383,1730161838878,-500.0,0.00024623,2]
[340961384,1730161838888,-500.0,0.00024623,2]
[340961386,1730161838897,-500.0,0.00024623,2]
[340961388,1730161838907,-500.0,0.00024623,2]
[340961390,1730161838916,-41914.47099806,0.00024627,3]
[340961391,1730161838929,-128706.37960544,0.00024627,3]
[340961392,1730161838938,-139017.903381,0.00024627,3]
[340961393,1730161838947,-48894.3341731,0.00024632,3]
[340961394,1730161838956,-34754.4758452,0.00024632,3]
[340961395,1730161838965,-469.0533714,0.00024634,2]
[340961396,1730161838975,-34754.4758452,0.00024637,3]
[340961397,1730161838984,-151.0,0.00024637,7]
[340961398,1730161838994,-151.0,0.00024637,7]
[340961399,1730161839003,-151.0,0.00024637,7]
[340961400,1730161839013,-174.813786,0.00024637,7]
[340961401,1730161839022,-174.813786,0.00024637,7]
[340961402,1730161839032,-151.0,0.00024637,7]
[340961403,1730161839041,-34754.4758452,0.00024647,3]
[340961404,1730161839050,-502.23958236,0.00024657,4]
[340961405,1730161839061,-500.0,0.00024657,4]
[340961406,1730161839069,-500.0,0.00024657,4]
[340961407,1730161839079,-500.0,0.00024657,4]
[340961408,1730161839088,-500.0,0.00024657,4]
[340961409,1730161839097,-500.0,0.00024657,4]
[340961410,1730161839106,-500.0,0.00024657,4]
[340961411,1730161839116,-500.0,0.00024657,4]
[340961412,1730161839125,-505.89490599,0.00024657,4]
[340961413,1730161839135,-500.0,0.00024657,4]
[340961414,1730161839145,-500.0,0.00024657,4]
[340961415,1730161839154,-500.0,0.00024657,4]
[340961416,1730161839164,-500.0,0.00024657,4]
[340961417,1730161839174,-500.0,0.00024657,4]
[340961418,1730161839183,-500.0,0.00024657,4]
[340961419,1730161839192,-500.0,0.00024657,4]
[340961420,1730161839202,-500.0,0.00024657,4]
[340961421,1730161839212,-500.0,0.00024657,4]
[340961422,1730161839221,-500.0,0.00024657,4]
[340961423,1730161839231,-500.0,0.00024657,4]
[340961424,1730161839240,-500.0,0.00024657,4]
[340961425,1730161839250,-500.0,0.00024657,4]
[340961426,1730161839259,-500.0,0.00024657,4]
[340961427,1730161839269,-500.0,0.00024657,4]
[340961428,1730161839278,-500.0,0.00024657,4]
[340961429,1730161839288,-500.0,0.00024657,4]
[340961430,1730161839298,-500.0,0.00024657,4]
[340961431,1730161839308,-500.0,0.00024657,4]
[340961432,1730161839317,-500.0,0.00024657,4]
[340961433,1730161839326,-500.0,0.00024657,4]
[340961434,1730161839335,-559.00963074,0.00024657,4]
[340961435,1730161839345,-500.0,0.00024657,4]
[340961436,1730161839354,-500.0,0.00024657,4]
[340961437,1730161839363,-500.0,0.00024657,4]
[340961438,1730161839372,-500.0,0.00024657,4]
[340961439,1730161839382,-500.0,0.00024657,4]
[340961440,1730161839391,-328.85313274,0.00024657,4]
[340961441,1730161839400,-500.0,0.00024657,4]
[340961442,1730161839409,-500.0,0.00024657,4]
[340961443,1730161839419,-585.75191908,0.00024657,4]
[340961444,1730161839428,-500.0,0.00024657,4]
[340961445,1730161839438,-500.0,0.00024657,4]
[340961446,1730161839448,-500.0,0.00024657,4]
[340961447,1730161839459,-500.0,0.00024657,4]
[340961448,1730161839468,-500.0,0.00024657,4]
[340961449,1730161839478,-500.0,0.00024657,4]
[340961450,1730161839488,-500.0,0.00024657,4]
[340961451,1730161839497,-500.0,0.00024657,4]
[340961452,1730161839508,-500.0,0.00024657,4]
[340961453,1730161839518,-500.0,0.00024657,4]
[340961454,1730161839527,-500.0,0.00024657,4]
[340961455,1730161839538,-500.0,0.00024657,4]
[340961456,1730161839548,-500.0,0.00024657,4]
[340961457,1730161839559,-500.0,0.00024657,4]
[340961458,1730161839573,-500.0,0.00024657,4]
[340961459,1730161839582,-500.0,0.00024657,4]
[340961460,1730161839591,-500.0,0.00024657,4]
[340961461,1730161839599,-500.0,0.00024657,4]
[340961462,1730161839608,-558.81389547,0.00024657,4]
[340961463,1730161839618,-501.38955266,0.00024657,4]
[340961464,1730161839626,-500.0,0.00024657,4]
[340961465,1730161839636,-500.0,0.00024657,4]
[340961466,1730161839645,-500.0,0.00024657,4]
[340961467,1730161839654,-500.0,0.00024657,4]
[340961468,1730161839663,-500.0,0.00024657,4]
[340961469,1730161839672,-500.0,0.00024657,4]
[340961470,1730161839682,-500.0,0.00024657,4]
[340961471,1730161839691,-500.0,0.00024657,4]
[340961472,1730161839701,-500.0,0.00024657,4]
[340961473,1730161839712,-273.28810747,0.00024657,4]
[340961474,1730161839721,-500.0,0.00024657,4]
[340961475,1730161839731,-346.1352442,0.00024657,4]
[340961476,1730161839741,-500.0,0.00024657,4]
[340961477,1730161839750,-500.0,0.00024657,4]
[340961478,1730161839760,-500.0,0.00024657,4]
[340961479,1730161839770,-500.0,0.00024657,4]
[340961480,1730161839780,-607.3175551,0.00024657,4]
[340961481,1730161839789,-500.0,0.00024657,4]
[340961482,1730161839798,-500.0,0.00024657,4]
[340961483,1730161839810,-500.0,0.00024657,4]
[340961484,1730161839819,-500.0,0.00024657,4]
[340961485,1730161839828,-500.0,0.00024657,4]
[340961486,1730161839838,-500.0,0.00024657,4]
[340961487,1730161839847,-488.15446981,0.00024657,4]
[340961488,1730161839857,-500.0,0.00024657,4]
[340961489,1730161839867,-500.0,0.00024657,4]
[340961490,1730161839876,-500.0,0.00024657,4]
[340961491,1730161839886,-500.0,0.00024657,4]
[340961492,1730161839896,-500.0,0.00024657,4]
[340961493,1730161839906,-500.0,0.00024657,4]
[340961494,1730161839916,-500.0,0.00024657,4]
[340961495,1730161839926,-500.0,0.00024657,4]
[340961496,1730161839936,-500.0,0.00024657,4]